[Event "87th Tata Steel Challengers 2025"]
[Site "Wijk aan Zee"]
[Date "2025.01.31"]
[Round "11.6"]
[White "Vaishali, Rameshbabu"]
[Black "Suleymanli, Aydin"]
[Result "0-1"]
[Annotator "TA"]
[ECO "B74"]
[WhiteElo "2476"]
[BlackElo "2623"]
[PlyCount "96"]
[EventDate "2025.01.13"]
[EventType "tourn"]
[EventCountry "NED"]
[SourceTitle "playchess.com"]
[Source "ChessBase"]
[SourceQuality "1"]
[TimeControl "40/6000+30:20/3000+30:900+30"]

{[%evp 24,96,0,13,3,-11,40,7,36,15,23,7,47,52,35,15,14,11,16,22,20,-8,0,-6,14,23,29,9,26,23,24,1,107,115,122,119,107,104,112,65,16,-7,-4,-6,-6,-8,-5,-2,-3,0,-2,-6,-13,-312,-387,-454,-473,-503,-362,-477,-474,-457,-268,-463,-421,-484,-484,-471,-469,-1069,-1028,-29983,-29979,-29985,-29986]} 1. e4 {[%emt 0:00:12]} c5 {[%emt 0:00:06]} 2. Nf3 {[%emt 0:00:07]} Nc6 {[%emt 0:02:17]} 3. Nc3 {[%emt 0:01:58]} g6 {[%emt 0:00:57]} 4. d4 {[%emt 0:01:16]} cxd4 {[%emt 0:00:07]} 5. Nxd4 {[%emt 0:00:03]} Bg7 {[%emt 0:00:08]} 6. Be3 {[%emt 0:00:21]} Nf6 {[%emt 0:00:10][%cal Bg8f6,Bf6d7,Bd7c5][%mdl 32]} 7. Be2 {[%emt 0:00:55]} d6 {[%emt 0:02:49]} 8. O-O {[%emt 0:05:36]} O-O {[%emt 0:00:35]} 9. Nb3 {[%emt 0:14:00]} b6 {[%emt 0:06:10]} 10. f4 {[%emt 0:08:03]} Bb7 {[%emt 0:08:19]} 11. Bf3 {[%emt 0:00:18]} Nd7 {[%emt 0:03:14]} 12. Qd2 {[%emt 0:02:52]} Nc5 {[%emt 0:04:27]} 13. Rad1 {[%emt 0:13:03]} Rc8 {[%emt 0:02:29] B74: Sicilian Dragon: Classical System with 9 Nb3.} 14. Qf2 {[%emt 0:14:54][%cal Rb3c5]} Qe8 {[%emt 0:24:54]} ({Better is} 14... Ba6 $11) 15. h4 $146 {[%emt 0:24:56][%cal Rb3c5]} (15. Nd4 Nxd4 16. Bxd4 e5 17. Be3 exf4 18. Bxf4 Na4 19. Nxa4 Qxa4 20. c3 Be5 21. Bh6 {½-½ Burnett,A (2269)-Roeder,M (2411) Plzen op 6th 2014 (5)}) 15... Nd8 {[%emt 0:09:06][%cal Bc6d8,Bd8e6,Be6d4][%mdl 32] The position is equal.} 16. Nxc5 {[%emt 0:03:46]} bxc5 {[%emt 0:00:07]} 17. h5 {[%emt 0:00:36]} f5 {[%emt 0:06:29]} 18. hxg6 {[%emt 0:01:37]} hxg6 {[%emt 0:00:34]} 19. g4 {[%emt 0:03:52]} (19. Qh4 $5) 19... Ne6 {[%emt 0:07:17]} 20. exf5 {[%emt 0:03:29]} Bxf3 {[%emt 0:00:24]} 21. Qxf3 {[%emt 0:00:01]} gxf5 {[%emt 0:00:20]} 22. Qd5 {[%emt 0:07:34]} Qf7 {[%emt 0:00:41]} 23. g5 {[%emt 0:00:54]} Nd4 {[%emt 0:01:18]} 24. Qg2 {[%emt 0:00:48]} e6 {[%emt 0:01:56] Prevents Nd5} 25. Rd2 {[%emt 0:01:12]} Qh5 {[%emt 0:01:03]} 26. b3 {[%emt 0:00:33]} Qg4 {[%emt 0:08:31]} 27. Ne2 {[%emt 0:00:16]} e5 {[%emt 0:00:38]} (27... Nxe2+ $11 {keeps the balance.} 28. Rxe2 Qxg2+ 29. Kxg2 Kf7) 28. Qxg4 $1 $16 {[%emt 0:00:38]} fxg4 {[%emt 0:00:04]} 29. Bxd4 {[%emt 0:00:20]} cxd4 {[%emt 0:01:39]} 30. f5 {[%emt 0:00:41]} Kf7 {[%emt 0:01:10]} 31. Ng3 {[%emt 0:00:29]} (31. c3 $16) 31... Rh8 $1 $14 {[%emt 0:00:55]} (31... Rc3 32. Ne4 Rc6 33. f6 $16) 32. Re2 {[%emt 0:00:34]} d5 {[%emt 0:01:17]} 33. f6 {[%emt 0:00:27]} Bf8 {[%emt 0:00:05]} 34. Nf5 $1 $132 {[%emt 0:00:36][%mdl 2048] White puts up resistance} (34. Rxe5 $2 Rxc2 (34... Bd6 35. Rxd5 Bxg3 36. Rxd4 $17) 35. Re2 (35. Rxd5 $2 Rhh2 $19) 35... Rc3 $17) 34... e4 {[%emt 0:01:09] Black wants to play ...Rh5.} 35. Nxd4 {[%emt 0:00:27]} Bc5 {[%emt 0:00:52]} 36. c3 {[%emt 0:00:31]} Bb6 {[%emt 0:00:23]} (36... Rh3 $5 37. Rf5 $8 Bxd4+ 38. cxd4 Rch8 $11) 37. Rf5 {[%emt 0:00:32]} Rhd8 {[%emt 0:03:49]} 38. Rh2 $2 {[%emt 0:00:29][%mdl 8192] This costs White the game.} (38. Kg2 $1 $11 {and White has nothing to worry.}) 38... Rxc3 $19 {[%emt 0:01:47]} 39. Rh7+ {[%emt 0:00:14]} Kg8 $1 {[%emt 0:00:41]} 40. Rg7+ {[%emt 0:00:46]} Kh8 {[%emt 0:06:23]} 41. Kg2 {[%emt 0:06:45]} Bxd4 {[%emt 0:00:28]} 42. g6 {[%emt 0:02:04]} Rh3 {[%emt 0:16:36] Prevents Rh5+.} (42... Rc2+ 43. Kg3 Bxf6 (43... Rxa2 44. Rh5#) 44. Rh7+ Kg8 45. Rxf6 $11) 43. Rc7 {[%emt 0:16:00] [#] g7+ is the strong threat.} Bxf6 {[%emt 0:05:40]} 44. Rxf6 {[%emt 0:00:43]} d4 {[%emt 0:02:37]} 45. Rcf7 {[%emt 0:24:05] [#]} ({Much worse is} 45. Rf4 d3 46. g7+ Kg8 $19) 45... Kg8 {[%emt 0:00:26] Strongly threatening ...Rf3. Wards off g7} 46. Rf4 {[%emt 0:00:56]} (46. g7 $142 Rf3 47. Rf8+ Kxg7 48. Rxd8 Kxf6 49. Rxd4) 46... d3 {[%emt 0:03:07]} 47. Rxg4 {[%emt 0:02:01]} d2 {[%emt 0:00:21]} 48. Rf1 {[%emt 0:00:07]} Re3 {[%emt 0:00:23] Weighted Error Value: White=0.39/Black=0.14 (very precise)   Loses game:     	White=1     	---        Mistake:       	White=2     	Black=2      Inaccurate:     	White=3     	Black=2      OK:         	White=9     	Black=14     Best:        	White=6     	Black=4      Strong:       	White=2     	Black=2      Brilliant:      	---       	Black=1} ({Not} 48... d1=Q 49. Rxd1 Rhd3 50. Re1 $16) 0-1

[Event "87th Tata Steel Challengers 2025"]
[Site "Wijk aan Zee"]
[Date "2025.01.31"]
[Round "11.7"]
[White "Nogerbek, Kazybek"]
[Black "Gurel, Ediz"]
[Result "1/2-1/2"]
[Annotator "TA"]
[ECO "D50"]
[WhiteElo "2514"]
[BlackElo "2624"]
[PlyCount "61"]
[EventDate "2025.01.13"]
[EventType "tourn"]
[EventCountry "NED"]
[SourceTitle "playchess.com"]
[Source "ChessBase"]
[SourceQuality "1"]
[TimeControl "40/6000+30:20/3000+30:900+30"]

{[%evp 14,61,25,15,22,20,15,14,20,12,3,10,14,10,6,7,0,0,1,7,0,0,4,0,0,0,2,1,11,11,9,10,11,8,7,6,7,7,8,8,8,0,0,0,2,2,9,9,9,9]} 1. d4 {[%emt 0:00:02]} Nf6 {[%emt 0:00:12]} 2. c4 {[%emt 0:00:10]} e6 {[%emt 0:00:09]} 3. Nf3 {[%emt 0:00:06]} d5 {[%emt 0:00:12]} 4. Nc3 {[%emt 0:00:10]} c5 {[%emt 0:00:21]} 5. cxd5 {[%emt 0:00:42]} cxd4 {[%emt 0:00:06]} 6. Qxd4 {[%emt 0:01:34]} exd5 {[%emt 0:00:08]} 7. Bg5 {[%emt 0:01:24]} Be7 {[%emt 0:00:09]} 8. e3 {[%emt 0:00:07]} O-O {[%emt 0:00:14] The position is equal.} 9. Be2 {[%emt 0:00:05]} Nc6 {[%emt 0:01:47]} 10. Qd3 {[%emt 0:00:20]} h6 {[%emt 0:00:22]} 11. Bh4 {[%emt 0:01:13]} Qb6 {[%emt 0:01:15]} 12. O-O {[%emt 0:09:13]} Rd8 {[%emt 0:00:46]} 13. Qb5 {[%emt 0:05:55]} Qxb5 {[%emt 0:16:30]} 14. Nxb5 {[%emt 0:01:36]} g5 {[%emt 0:01:17]} 15. Bg3 {[%emt 0:00:16]} Ne4 {[%emt 0:05:16]} 16. Rfd1 {[%emt 0:04:49]} Nxg3 {[%emt 0:00:53]} 17. hxg3 {[%emt 0:00:09]} Be6 {[%emt 0:01:04]} 18. Nfd4 {[%emt 0:04:39] Threatens to win with Nxe6.} Rac8 {[%emt 0:04:01]} 19. Rac1 {[%emt 0:01:42]} Nxd4 {[%emt 0:02:30]} 20. Nxd4 {[%emt 0:01:47]} Bf6 {[%emt 0:00:14]} 21. Nxe6 {[%emt 0:05:58]} fxe6 {[%emt 0:00:09]} 22. Bg4 {[%emt 0:00:40]} Kf7 {[%emt 0:00:12]} 23. Rxc8 {[%emt 0:00:56]} Rxc8 {[%emt 0:00:04]} 24. Rxd5 $11 {[%emt 0:00:40][%mdl 4096] Endgame. With the idea Rd7+. KRB-KRB} Rc1+ {[%emt 0:00:31]} 25. Rd1 {[%emt 0:00:07]} Rxd1+ {[%emt 0:00:13]} 26. Bxd1 {[%emt 0:00:06]} Bxb2 {[%emt 0:00:04] KB-KB} 27. f4 {[%emt 0:00:50]} Kf6 {[%emt 0:00:28]} 28. Kf2 {[%emt 0:00:05]} e5 {[%emt 0:00:07]} 29. Kf3 {[%emt 0:00:06]} exf4 {[%emt 0:00:06]} 30. gxf4 {[%emt 0:00:07]} gxf4 {[%emt 0:00:05]} 31. exf4 {[%emt 0:00:06] Not much happened in this game.   Weighted Error Value: White=0.01 (flawless) /Black=0.02 (flawless) .  OK:         	White=12    	Black=12     Best:        	White=1     	Black=2} 1/2-1/2